bitfinex/quotes_SOLUSD_20250904
["timestamp","ask_amount","ask_price","bid_price","bid_amount"]
[1756989224319,26.0,207.98,207.95,6.68097868]
[1756989224825,26.0,207.98,207.96,6.68097868]
[1756989225137,26.0,207.98,207.95,6.68097868]
[1756989225716,6.68097868,207.96,207.87,26.71]
[1756989225920,32.68097868,207.93,207.84,0.71]
[1756989226236,33.38097868,207.93,207.87,6.68097868]
[1756989226611,6.68097868,207.92,207.87,6.68097868]
[1756989226810,7.38097868,207.92,207.87,6.68097868]
[1756989227034,7.38097868,207.92,207.87,4.81068198]
[1756989227211,0.7,207.92,207.87,11.49166066]
[1756989227413,0.7,207.92,207.88,6.68097868]
[1756989227715,32.68097868,207.93,207.88,6.68097868]
[1756989227909,26.7,207.93,207.88,6.68097868]
[1756989228110,26.0,207.93,207.88,7.39097868]
[1756989228329,26.0,207.93,207.89,6.68097868]
[1756989228710,26.0,207.93,207.91,6.68097868]
[1756989228921,65.86,207.97,207.92,6.68097868]
[1756989229212,66.56,207.97,207.93,6.68097868]
[1756989229447,0.7,207.96,207.93,6.68097868]
[1756989230414,26.0,207.97,207.93,6.68097868]
[1756989230608,26.0,207.97,207.94,6.68097868]
[1756989230820,26.0,207.97,207.92,11.4905172]
[1756989231132,26.0,207.97,207.86,12.16934137]
[1756989231133,6.68097868,207.95,207.89,11.49119614]
[1756989231437,0.06,207.92,207.89,11.49119614]
[1756989232223,0.06,207.92,207.89,0.71]
[1756989232417,0.06,207.92,207.88,4.81046757]
[1756989232627,0.06,207.92,207.88,5.52046757]
[1756989232938,0.06,207.92,207.89,0.71]
[1756989233106,0.06,207.92,207.91,6.68097868]
[1756989233444,0.06,207.92,207.91,7.39097868]
[1756989234140,0.06,207.92,207.91,7.67530182]
[1756989234445,0.06,207.92,207.91,12.48507527]
[1756989235218,0.06,207.92,207.91,5.80409659]
[1756989235420,0.06,207.92,207.91,12.48507527]
[1756989236433,0.06,207.92,207.91,11.49075213]
[1756989237865,0.06,207.92,207.9,6.68097868]
[1756989238047,0.06,207.92,207.91,6.68097868]
[1756989238765,0.06,207.92,207.89,4.81005074]
[1756989239062,0.06,207.92,207.91,6.68097868]
[1756989239436,0.06,207.92,207.91,7.39097868]
[1756989239634,0.06,207.92,207.91,12.20075213]
[1756989240666,0.06,207.92,207.91,12.48507527]
[1756989240838,0.06,207.92,207.91,12.20075213]
[1756989241041,0.06,207.92,207.91,12.48507527]
[1756989241372,0.06,207.95,207.92,0.28432314]
[1756989241674,0.7,207.94,207.89,4.81023618]
[1756989241841,7.38097868,207.93,207.83,0.71]
[1756989242146,7.38097868,207.93,207.87,6.68097868]
[1756989242465,6.68097868,207.88,207.8,4.81231953]
[1756989242674,26.0,207.89,207.83,6.68097868]
[1756989242876,26.0,207.87,207.84,6.68097868]
[1756989243462,26.0,207.87,207.81,0.71]
[1756989243463,0.7,207.86,207.81,6.68097868]
[1756989243764,0.7,207.85,207.81,11.49303668]
[1756989244473,0.7,207.84,207.81,6.68097868]
[1756989244779,7.38097868,207.87,207.81,6.68097868]
[1756989245147,26.7,207.91,207.82,0.71]
[1756989245358,26.0,207.89,207.87,6.68097868]
[1756989245656,0.7,207.91,207.88,11.49144625]
[1756989245867,26.0,207.9,207.88,11.49144625]
[1756989246064,26.0,207.9,207.88,6.68097868]
[1756989246480,0.7,207.91,207.88,6.68097868]
[1756989246675,26.0,207.93,207.89,6.68097868]
[1756989246889,0.76,207.95,207.89,0.71]
[1756989247055,0.76,207.95,207.91,6.68097868]
[1756989247257,0.06,207.95,207.93,6.68097868]
[1756989247584,26.76,207.95,207.88,0.71]
[1756989247758,26.76,207.95,207.94,6.68097868]
[1756989247759,0.06,207.95,207.94,6.68097868]
[1756989248786,0.76,207.95,207.93,6.68097868]
[1756989249157,0.7,207.94,207.9,6.68097868]
[1756989249461,0.7,207.93,207.91,6.68097868]
[1756989249660,0.7,207.93,207.9,6.68097868]
[1756989249870,0.7,207.93,207.9,11.49097985]
[1756989250182,0.7,207.92,207.88,6.68097868]
[1756989250394,0.7,207.91,207.87,6.68097868]
[1756989250686,0.7,207.9,207.86,6.68097868]
[1756989251882,32.68097868,207.92,207.87,6.68097868]
[1756989252094,0.7,207.91,207.87,6.68097868]
[1756989252291,32.68097868,207.92,207.87,6.68097868]
[1756989252591,26.68,207.92,207.87,6.68097868]
[1756989252795,0.68,207.91,207.87,6.68097868]
[1756989252968,0.68,207.9,207.87,6.68097868]
[1756989253285,0.68,207.9,207.86,11.49177863]
[1756989253486,33.36097868,207.89,207.84,0.03]
[1756989253671,0.68,207.88,207.84,0.03]
[1756989253868,0.68,207.89,207.84,6.71097868]
[1756989254064,0.68,207.88,207.84,6.71097868]
[1756989254275,0.68,207.91,207.84,6.71097868]
[1756989254681,0.68,207.9,207.84,6.71097868]
[1756989255186,0.68,207.9,207.84,0.03]
[1756989255364,0.68,207.9,207.84,6.71097868]
[1756989255678,0.68,207.9,207.85,4.81116189]
[1756989255862,26.0,207.92,207.88,6.68097868]
[1756989256062,26.0,207.9,207.89,6.68097868]
[1756989256259,26.0,207.91,207.88,6.68097868]
[1756989256460,32.68097868,207.91,207.85,11.49214057]
[1756989256664,0.68,207.9,207.84,0.03]
[1756989257080,0.68,207.9,207.84,11.52226323]
[1756989257273,0.68,207.9,207.85,6.68097868]
[1756989257787,0.68,207.9,207.86,4.81093043]
[1756989257979,26.0,207.93,207.87,6.68097868]
[1756989258184,26.0,207.93,207.86,5.52093043]
[1756989258185,0.06,207.95,207.92,6.68097868]
[1756989258489,0.06,207.95,207.94,6.68097868]
[1756989258688,0.06,207.95,207.9,0.71]
[1756989258877,0.68,207.94,207.87,0.71]
[1756989259078,0.68,207.94,207.89,6.68097868]
[1756989259576,0.68,207.94,207.9,6.68097868]
[1756989259886,0.68,207.94,207.9,11.49090614]
[1756989260269,0.68,207.94,207.9,6.68097868]
[1756989261093,0.68,207.94,207.89,5.52019436]
[1756989261301,26.06,207.95,207.89,5.52019436]
[1756989262576,10.64414506,207.94,207.89,0.71]
[1756989262895,11.32414506,207.94,207.88,15.45457444]
[1756989263090,11.32414506,207.94,207.89,10.64414506]
[1756989263798,30.8688522,207.95,207.88,4.81042938]
[1756989264094,30.8688522,207.95,207.85,0.28432314]
[1756989264095,36.64414506,207.91,207.84,0.03]
[1756989264278,26.0,207.91,207.84,0.03]
[1756989264474,26.0,207.91,207.86,10.64414506]
[1756989264678,26.68,207.91,207.86,10.64414506]
[1756989264876,26.68,207.91,207.86,11.35414506]
[1756989265075,26.68,207.91,207.84,0.74]
[1756989265293,36.64414506,207.91,207.84,0.74]
[1756989265481,36.64414506,207.91,207.86,10.64414506]
[1756989265681,0.68,207.9,207.86,10.64414506]
[1756989265892,11.32414506,207.9,207.85,4.81113913]
[1756989266072,36.64414506,207.91,207.86,10.64414506]
[1756989266487,0.68,207.9,207.86,10.64414506]
[1756989266707,36.64414506,207.91,207.86,11.35414506]
[1756989267077,26.0,207.89,207.87,10.64414506]
[1756989267283,26.0,207.89,207.84,0.74]
[1756989267508,26.0,207.89,207.85,0.71]
[1756989267686,26.0,207.89,207.85,11.35414506]
[1756989267883,36.64414506,207.89,207.85,0.71]
[1756989268590,26.0,207.89,207.85,0.71]
[1756989268787,36.64414506,207.89,207.85,4.81116172]
[1756989269003,26.0,207.89,207.86,0.71]
[1756989269397,10.64414506,207.92,207.86,11.35414506]
[1756989269598,0.68,207.97,207.87,0.71]
[1756989270003,10.64414506,207.94,207.87,0.71]
[1756989270195,10.64414506,207.94,207.88,10.64414506]
[1756989270501,26.74,207.95,207.89,15.45438124]
[1756989270713,0.06,207.95,207.92,10.64414506]
[1756989270894,0.06,207.95,207.93,11.35414506]
[1756989271207,0.06,207.95,207.89,5.52023618]
[1756989271404,10.70414506,207.95,207.9,10.64414506]
[1756989271612,11.38414506,207.95,207.9,10.64414506]
[1756989271807,10.70414506,207.95,207.9,10.64414506]
[1756989272005,37.32414506,207.94,207.89,15.45438124]
[1756989272220,36.64414506,207.94,207.87,5.52054149]
[1756989272386,36.64414506,207.94,207.85,4.84116189]
[1756989272387,10.64414506,207.9,207.85,4.84116189]
[1756989272592,10.64414506,207.88,207.85,0.03]
[1756989273212,10.64414506,207.86,207.85,0.03]
[1756989273593,10.64414506,207.87,207.85,0.03]
[1756989274104,26.0,207.91,207.85,0.74]
[1756989274293,10.64414506,207.91,207.86,15.45507549]
[1756989274496,50.22414506,207.94,207.89,10.64414506]
[1756989274706,39.58,207.94,207.89,11.35414506]
[1756989274905,10.70414506,207.95,207.9,11.35414506]
[1756989274906,26.06,207.95,207.9,11.35414506]
[1756989275103,26.0,207.94,207.9,10.64414506]
[1756989275307,26.68,207.94,207.89,10.64414506]
[1756989275694,26.68,207.94,207.89,11.35414506]
[1756989276090,0.06,207.95,207.91,10.64414506]
[1756989276293,0.06,207.95,207.93,4.80931082]
[1756989276703,0.06,207.95,207.94,10.64414506]
[1756989277045,0.06,207.95,207.93,4.80931082]
[1756989277597,11.38414506,207.95,207.9,10.64414506]
[1756989277916,11.38414506,207.95,207.89,4.81023618]
[1756989277917,0.68,207.94,207.89,4.81023618]
[1756989278115,11.32414506,207.94,207.89,5.52023618]
[1756989278313,11.32414506,207.94,207.89,15.45438124]
[1756989278504,11.32414506,207.94,207.89,4.81023618]
[1756989278697,37.32414506,207.93,207.85,0.74]
[1756989278906,37.32414506,207.93,207.87,10.64414506]
[1756989279103,26.68,207.93,207.87,10.64414506]
[1756989279407,26.68,207.93,207.89,10.64414506]
[1756989279808,26.0,207.93,207.89,10.64414506]
[1756989280002,40.28,207.95,207.91,10.64414506]
[1756989280221,39.6,207.98,207.93,10.64414506]
[1756989280399,39.6,207.98,207.93,15.45343561]
[1756989280400,4.27108984,207.97,207.93,15.45343561]
[1756989280602,3.59108984,207.96,207.93,4.80929055]
[1756989280812,3.59108984,207.96,207.92,10.64414506]
[1756989280813,3.59096706,207.95,207.92,10.64414506]
[1756989281020,0.68,207.96,207.92,10.64414506]
[1756989281206,3.59092624,207.95,207.92,10.64414506]
[1756989281407,0.68,207.96,207.92,10.64414506]
[1756989281710,39.6,207.98,207.94,10.64414506]
[1756989281906,3.59161864,207.97,207.94,10.64414506]
[1756989282131,3.59161864,207.96,207.93,10.64414506]
[1756989282341,0.68,207.97,207.94,10.64414506]
[1756989282640,3.59197917,207.96,207.94,15.45307842]
[1756989282812,0.68,207.97,207.94,15.45307842]
[1756989282813,3.59197917,207.95,207.94,15.45307842]
[1756989283008,3.59182866,207.95,207.94,15.45307842]
[1756989283432,3.59182866,207.95,207.92,10.64414506]
[1756989283650,0.68,207.97,207.92,10.64414506]
[1756989283808,4.28164454,207.96,207.92,10.64414506]
[1756989284009,3.59164454,207.95,207.92,10.64414506]
[1756989284205,0.69,207.96,207.92,10.64414506]
[1756989284409,3.59152211,207.95,207.91,4.80977345]
[1756989284711,37.39414506,207.98,207.93,10.64414506]
[1756989284931,4.28152368,207.97,207.93,10.64414506]
[1756989285229,4.28152368,207.96,207.93,10.64414506]
[1756989285421,40.92566874,207.95,207.89,4.81019579]
[1756989285627,3.59152368,207.94,207.9,10.64414506]
[1756989285934,4.28125054,207.93,207.89,10.64414506]
[1756989286135,3.59125054,207.92,207.89,10.64414506]
[1756989286346,0.69,207.93,207.89,10.64414506]
[1756989286523,14.92596651,207.92,207.88,4.8104334]
[1756989286849,10.64414506,207.9,207.86,4.81079452]
[1756989287014,11.33414506,207.9,207.86,4.81079452]
[1756989287815,0.69,207.94,207.88,10.64414506]
[1756989288016,26.0,207.92,207.89,10.64414506]
[1756989288534,26.0,207.92,207.88,15.45456321]
[1756989288731,26.0,207.92,207.89,10.64414506]
[1756989289232,50.02414506,207.95,207.9,10.64414506]
[1756989289437,3.59259425,207.94,207.9,10.64414506]
[1756989289645,3.59259425,207.93,207.9,11.32414506]
[1756989289831,39.36,207.95,207.91,11.32414506]
[1756989290011,3.59207144,207.94,207.92,10.64414506]
[1756989290211,0.06,207.98,207.93,11.32414506]
[1756989290414,3.59247754,207.97,207.94,10.64414506]
[1756989290732,3.59247754,207.96,207.94,15.45311491]
[1756989290922,3.59247754,207.95,207.94,15.45311491]
[1756989291121,0.06,207.95,207.93,10.64414506]
[1756989291320,0.06,207.95,207.93,4.80918663]
[1756989292231,0.06,207.95,207.93,16.13333169]
[1756989292535,0.06,207.95,207.93,15.45333169]
[1756989293313,0.06,207.95,207.92,15.45365351]
[1756989293932,0.06,207.95,207.93,10.64414506]
[1756989294636,0.06,207.95,207.94,4.80907954]
[1756989295339,0.06,207.95,207.94,16.1332246]
[1756989295928,0.06,207.95,207.94,15.4532246]
[1756989296515,0.06,207.95,207.92,10.64414506]
[1756989296730,0.06,207.95,207.92,15.45366524]
[1756989296932,0.69,207.94,207.9,4.81000481]
[1756989297213,10.70414506,207.95,207.9,5.49000481]
[1756989297449,0.75,207.95,207.9,16.13414987]
[1756989298027,0.69,207.94,207.9,10.64414506]
[1756989298811,0.06,207.95,207.92,10.64414506]
[1756989299448,0.69,207.94,207.9,4.80996836]
[1756989300159,0.06,207.95,207.92,10.64414506]
[1756989300453,36.64414506,207.93,207.89,0.03]
[1756989300620,0.06,207.95,207.9,10.64414506]
[1756989300818,75.88414506,207.95,207.91,4.80960859]
[1756989301022,76.57414506,207.95,207.91,4.80960859]
[1756989301243,36.70414506,207.95,207.91,4.80960859]
[1756989301436,0.06,207.95,207.94,10.64414506]
[1756989301639,0.06,207.95,207.92,0.68]
[1756989301826,0.06,207.95,207.94,10.64414506]
[1756989302350,0.06,207.95,207.94,11.32414506]
[1756989302930,0.06,207.95,207.94,16.1332246]
[1756989303317,0.06,207.98,207.97,10.64414506]
[1756989303848,0.06,207.98,207.97,11.32414506]
[1756989304355,0.06,207.98,207.97,10.64414506]
[1756989305057,0.06,207.98,207.97,15.45253088]
[1756989305349,0.06,207.98,207.96,10.64414506]
[1756989305551,0.06,207.98,207.95,10.64414506]
[1756989305746,0.75,207.98,207.94,10.64414506]
[1756989305961,0.75,207.98,207.93,4.80931082]
[1756989305962,0.69,207.97,207.93,15.45345588]
[1756989306256,10.64414506,207.95,207.9,4.80979804]
[1756989306562,0.69,207.94,207.89,11.35414506]
[1756989306927,26.06,207.98,207.89,0.03]
[1756989307134,11.33414506,207.93,207.89,0.03]
[1756989307658,10.64414506,207.93,207.89,0.03]
[1756989307861,0.69,207.92,207.89,0.03]
[1756989308738,0.69,207.91,207.89,0.03]
[1756989309051,36.64414506,207.9,207.89,0.03]
[1756989309454,37.33414506,207.9,207.89,0.03]
[1756989310234,50.92973907,207.9,207.89,0.03]
[1756989310433,40.28559401,207.9,207.89,0.03]
[1756989310732,76.39414506,207.9,207.89,0.03]
[1756989310942,42.14414987,207.9,207.89,0.03]
[1756989311143,68.79974388,207.9,207.89,0.03]
[1756989312367,29.73974388,207.9,207.89,0.03]
[1756989312745,68.83974388,207.9,207.89,0.03]
[1756989314172,58.19559882,207.9,207.89,0.03]
[1756989314346,68.83974388,207.9,207.89,0.03]
[1756989316382,29.73974388,207.9,207.89,0.03]
[1756989316548,68.81974388,207.9,207.89,0.03]
[1756989317472,79.74821208,207.9,207.89,0.03]
[1756989317994,81.67699188,207.9,207.89,0.03]
[1756989318471,42.59699188,207.9,207.89,0.03]
[1756989318675,70.97284682,207.9,207.89,0.03]
[1756989319367,81.61699188,207.9,207.89,0.03]
[1756989320567,31.95284682,207.9,207.89,0.03]
[1756989320871,70.64852368,207.9,207.89,0.03]
[1756989321369,69.95852368,207.9,207.89,0.03]
[1756989321572,20.33437862,207.9,207.89,0.03]
[1756989321769,6.73878461,207.9,207.89,0.03]
[1756989322095,45.73878461,207.9,207.89,0.03]
[1756989322281,1.9287798,207.9,207.89,0.03]
[1756989322566,71.73878461,207.9,207.89,0.03]
[1756989322745,66.9287798,207.9,207.89,0.03]
[1756989322943,1.9287798,207.9,207.89,0.03]
[1756989323163,38.98,207.9,207.89,0.69]
[1756989323970,38.98,207.9,207.89,0.03]
[1756989324672,43.79000481,207.9,207.89,0.03]
[1756989324882,64.73975071,207.9,207.89,0.03]
[1756989328569,65.02407385,207.9,207.89,0.03]
[1756989329160,64.94407385,207.9,207.89,0.03]
[1756989329604,64.92407385,207.9,207.89,0.03]
[1756989329759,18.40559882,207.9,207.89,0.03]
[1756989329963,50.39392863,207.91,207.89,0.69]
[1756989330159,13.59559401,207.9,207.89,0.03]
[1756989330491,11.4841567,207.9,207.89,0.03]
[1756989330867,71.57415189,207.9,207.89,0.69]
[1756989331068,76.3841567,207.9,207.89,0.03]
[1756989331786,69.71000481,207.9,207.89,0.03]
[1756989331968,76.3841567,207.9,207.89,0.03]
[1756989332164,64.9,207.9,207.89,0.69]
[1756989332478,76.3841567,207.9,207.89,0.03]
[1756989332663,37.4841567,207.9,207.89,0.03]
[1756989332972,76.3841567,207.9,207.89,0.03]
[1756989333360,69.71000481,207.9,207.89,0.03]
[1756989333564,76.3841567,207.9,207.89,0.03]
[1756989334387,64.65975071,207.9,207.89,0.03]
[1756989335661,64.94407385,207.9,207.89,0.03]
[1756989335973,39.87991715,207.87,207.86,0.03]
[1756989336176,85.41406904,207.87,207.86,0.03]
[1756989336368,86.09406904,207.87,207.86,0.03]
[1756989337105,13.87991715,207.86,207.84,0.03]
[1756989337300,52.20830378,207.85,207.84,0.03]
[1756989337481,52.88830378,207.85,207.84,0.03]
[1756989337667,51.02531378,207.85,207.84,0.03]
[1756989338172,18.4067559,207.85,207.84,0.03]
[1756989338373,63.94090779,207.85,207.84,0.03]
[1756989338986,70.61505968,207.85,207.84,0.69]
[1756989339183,39.34830378,207.85,207.84,0.69]
[1756989339388,78.18830378,207.85,207.84,0.69]
[1756989340283,78.18830378,207.85,207.84,0.03]
[1756989340284,82.99946567,207.85,207.84,0.03]
[1756989340672,70.59505968,207.85,207.84,0.03]
[1756989340880,52.18830378,207.85,207.84,0.03]
[1756989341586,56.99946567,207.85,207.84,0.03]
[1756989341989,18.15946567,207.85,207.84,0.03]
[1756989342199,13.34830378,207.85,207.84,0.69]
[1756989342378,6.67415189,207.85,207.84,0.69]
[1756989342576,38.8,207.85,207.84,0.69]
[1756989342774,45.47415189,207.85,207.84,0.03]
[1756989343480,59.7897459,207.85,207.84,0.03]
[1756989343682,63.88090779,207.85,207.84,0.03]
[1756989344100,59.0697459,207.85,207.84,0.03]
[1756989344288,20.2697459,207.85,207.84,0.03]
[1756989344493,43.61116189,207.85,207.84,0.03]
[1756989344692,50.28531378,207.85,207.84,0.03]
[1756989345593,4.81198926,207.86,207.84,0.73]
[1756989345793,4.81198926,207.86,207.84,0.03]
[1756989345794,45.47415189,207.85,207.84,0.03]
[1756989346578,50.28531378,207.85,207.84,0.03]
[1756989346774,55.09789924,207.85,207.84,0.03]
[1756989347507,55.81789924,207.85,207.84,0.03]
[1756989347685,55.09789924,207.85,207.84,0.03]
[1756989348004,55.81789924,207.85,207.84,0.03]
[1756989348189,62.73934136,207.85,207.84,0.03]
[1756989348381,69.41349325,207.85,207.84,0.03]
[1756989348579,76.08764514,207.85,207.84,0.03]
[1756989348782,76.37196828,207.85,207.84,0.03]
[1756989351502,80.37843479,207.85,207.84,0.03]
[1756989352299,94.81843479,207.85,207.84,0.03]
[1756989352504,26.0,207.82,207.81,0.03]
[1756989352689,71.75847503,207.82,207.81,0.03]
[1756989352890,26.0,207.82,207.81,0.03]
[1756989353114,85.0697459,207.82,207.81,0.03]
[1756989353404,86.99899084,207.82,207.81,0.03]
[1756989353702,73.40339683,207.82,207.81,0.03]
[1756989353903,34.60339683,207.82,207.81,0.73]
[1756989354107,73.40339683,207.82,207.81,0.73]
[1756989354619,78.21525324,207.82,207.81,0.73]
[1756989354903,32.74110135,207.82,207.81,0.73]
[1756989355109,34.60339683,207.82,207.81,0.73]
[1756989355404,66.72924494,207.82,207.81,0.73]
[1756989355581,40.72924494,207.82,207.81,0.73]
[1756989355989,47.40339683,207.82,207.81,0.73]
[1756989357212,40.72924494,207.82,207.81,0.73]
[1756989357901,47.40339683,207.82,207.81,0.03]
[1756989358302,47.40339683,207.82,207.81,0.73]
[1756989359330,1.92924494,207.82,207.81,0.73]
[1756989359492,38.8,207.82,207.81,0.73]
[1756989360107,41.47037227,207.82,207.81,0.73]
[1756989360300,44.14074454,207.82,207.81,0.73]
[1756989361317,48.95260095,207.82,207.81,0.73]
[1756989361519,48.95260095,207.82,207.81,0.03]
[1756989361712,44.14074454,207.82,207.81,0.03]
[1756989361914,48.95260095,207.82,207.81,0.03]
[1756989362329,73.94968404,207.82,207.81,0.03]
[1756989362632,63.26819496,207.82,207.81,0.03]
[1756989362804,49.67260095,207.82,207.81,0.03]
[1756989363124,77.98551327,207.82,207.81,0.03]
[1756989363300,26.0,207.8,207.79,0.03]
[1756989363508,67.47037227,207.8,207.79,0.03]
[1756989363815,78.87186135,207.8,207.79,0.03]
[1756989364015,83.68418088,207.8,207.79,0.03]
[1756989366730,83.68418088,207.8,207.76,0.03]
[1756989366731,95.71497972,207.8,207.76,0.03]
[1756989366931,2.67037227,207.77,207.76,0.03]
[1756989367157,41.47037227,207.77,207.76,0.03]
[1756989367333,28.67037227,207.77,207.76,0.03]
[1756989367517,72.28544269,207.77,207.76,0.03]
[1756989368129,33.48544269,207.77,207.76,0.03]
[1756989368336,77.09845708,207.77,207.76,0.03]
[1756989368731,77.81845708,207.77,207.76,0.03]
[1756989369333,77.09845708,207.77,207.76,0.03]
[1756989369525,77.81845708,207.77,207.76,0.03]
[1756989370839,91.41405109,207.77,207.76,0.03]
[1756989371020,35.62808481,207.77,207.76,0.03]
[1756989371223,77.09845708,207.77,207.76,0.03]
[1756989371520,77.81845708,207.77,207.76,0.03]
[1756989371834,77.09845708,207.77,207.76,0.03]
[1756989372434,91.35405109,207.77,207.76,0.03]
[1756989372634,77.09845708,207.77,207.76,0.03]
[1756989373347,77.75845708,207.77,207.76,0.03]
[1756989373725,35.62808481,207.77,207.76,0.03]
[1756989373926,77.09845708,207.77,207.76,0.03]
[1756989374240,81.34919356,207.77,207.76,0.03]
[1756989374549,80.68919356,207.77,207.76,0.03]
[1756989376650,73.2058069,207.77,207.76,0.75]
[1756989376853,80.68919356,207.77,207.76,0.03]
[1756989377352,93.38172953,207.77,207.69,0.72]
[1756989377560,2.67037227,207.7,207.69,0.72]
[1756989377721,45.06110875,207.7,207.69,0.72]
[1756989377923,71.06110875,207.7,207.69,0.72]
[1756989378143,26.0,207.67,207.66,0.72]
[1756989378337,67.47037227,207.67,207.66,0.72]
[1756989378947,72.28570428,207.67,207.66,0.72]
[1756989379151,67.47037227,207.67,207.66,0.72]
[1756989380422,28.67037227,207.67,207.66,0.72]
[1756989380628,38.8,207.67,207.66,0.72]
[1756989381651,41.47037227,207.67,207.66,0.72]
[1756989382350,38.8,207.67,207.66,0.72]
[1756989382655,41.47037227,207.67,207.66,0.72]
[1756989382840,38.8,207.67,207.66,0.72]
[1756989383229,41.57037227,207.67,207.66,0.72]
[1756989383430,2.77037227,207.67,207.66,0.72]
[1756989383733,41.57037227,207.67,207.66,0.72]
[1756989383930,2.77037227,207.67,207.66,0.72]
[1756989384134,26.0,207.64,207.63,0.1]
[1756989384334,68.97944335,207.64,207.63,0.82]
[1756989384756,64.8,207.64,207.63,0.82]
[1756989384948,78.61236014,207.64,207.63,0.1]
[1756989385148,73.7963324,207.64,207.63,0.1]
[1756989385634,69.61688905,207.64,207.63,0.1]
[1756989385834,73.7963324,207.64,207.63,0.1]
[1756989386245,79.27236014,207.64,207.63,0.1]
[1756989386462,82.84742918,207.64,207.63,0.1]
[1756989387368,111.16734633,207.64,207.45,0.1]
[1756989387543,4.17944335,207.55,207.52,0.72]
[1756989387744,42.97944335,207.54,207.52,0.72]
[1756989388169,8.99964965,207.53,207.48,0.72]
[1756989388463,38.8,207.52,207.45,0.1]
[1756989388649,26.0,207.47,207.45,0.1]
[1756989388849,26.0,207.48,207.45,0.1]
[1756989389371,1.93232048,207.47,207.46,0.72]
[1756989389568,1.93232048,207.47,207.45,0.1]
[1756989389882,1.93232048,207.47,207.45,4.92040708]
[1756989390037,26.0,207.54,207.46,10.69255493]
[1756989390241,39.2,207.53,207.47,0.72]
[1756989390443,12.05427299,207.51,207.5,10.69255493]
[1756989390653,0.66,207.58,207.5,11.41255493]
[1756989390850,10.69255493,207.55,207.51,0.72]
[1756989391062,39.26,207.54,207.52,0.72]
[1756989391243,10.69255493,207.53,207.45,0.82]
[1756989391443,10.69255493,207.55,207.48,10.69255493]
[1756989391662,49.97255493,207.55,207.49,0.72]
[1756989391972,60.66510986,207.55,207.49,0.72]
[1756989392375,36.69255493,207.52,207.48,0.72]
[1756989392665,65.38,207.52,207.48,0.72]
[1756989392871,10.69255493,207.55,207.51,10.69255493]
[1756989393072,10.69255493,207.55,207.54,10.69255493]
[1756989393248,10.69255493,207.55,207.54,11.69687807]
[1756989393447,0.66,207.64,207.55,0.28432314]
[1756989393659,50.09255493,207.61,207.56,0.72]
[1756989393862,10.69255493,207.6,207.56,0.72]
[1756989394064,10.69255493,207.59,207.53,0.72]
[1756989394271,0.66,207.6,207.53,11.41255493]
[1756989394474,10.69255493,207.58,207.5,4.81904698]
[1756989394656,40.06,207.59,207.51,10.69255493]
[1756989394855,39.4,207.59,207.55,15.51067104]
[1756989395068,26.0,207.61,207.57,10.69255493]
[1756989395254,26.66,207.61,207.53,0.72]
[1756989395473,10.69255493,207.6,207.55,10.69255493]
[1756989395655,39.48,207.6,207.56,0.72]
[1756989395850,10.69255493,207.59,207.54,0.28432314]
[1756989396068,10.69255493,207.59,207.54,10.69255493]
[1756989396383,36.69255493,207.55,207.45,14.5826088]
[1756989396672,36.69255493,207.55,207.49,10.69255493]
[1756989396874,36.69255493,207.55,207.5,15.51176681]
[1756989397189,10.69255493,207.53,207.47,0.72]
[1756989397353,10.69255493,207.53,207.47,11.41255493]
[1756989397552,50.17255493,207.53,207.46,4.8202063]
[1756989397758,10.69255493,207.51,207.45,0.1]
[1756989397967,10.69255493,207.52,207.46,10.69255493]
[1756989398165,39.48,207.56,207.51,10.69255493]